fUST/lending_fUST_20250718
["ID","MTS","AMOUNT","RATE_DAILY","PERIOD"]
[372927672,1752810657707,-1032.38,0.00018904,2]
[372927673,1752810657719,-574.83,0.00018904,2]
[372927674,1752810657729,-612.56,0.00018904,2]
[372927675,1752810657738,-481.63,0.00018904,2]
[372927676,1752810657747,-460.0,0.00018904,2]
[372927677,1752810657756,-460.0,0.00018904,2]
[372927678,1752810657767,-509.49,0.00018904,2]
[372927679,1752810657779,-460.0,0.00018904,2]
[372927680,1752810657789,-532.71,0.00018904,2]
[372927681,1752810657798,-463.14,0.00018904,2]
[372927682,1752810657807,-460.0,0.00018904,2]
[372927683,1752810657817,-1528.93,0.00018904,2]
[372927684,1752810657826,-460.0,0.00018904,2]
[372927685,1752810657835,-3075.97,0.00018904,2]
[372927686,1752810657845,-460.0,0.00018904,2]
[372927687,1752810657919,-460.0,0.00018904,2]
[372927688,1752810657928,-460.0,0.00018904,2]
[372927689,1752810657937,-1044.95,0.00018904,2]
[372927690,1752810657946,-460.0,0.00018904,2]
[372927691,1752810657955,-460.0,0.00018904,2]
[372927692,1752810657965,-460.0,0.00018904,2]
[372927693,1752810657974,-460.0,0.00018904,2]
[372927694,1752810657983,-460.0,0.00018904,2]
[372927695,1752810657992,-173.22790273,0.00018904,2]
[372927696,1752810658001,-460.0,0.00018904,2]
[372927697,1752810658011,-551.26,0.00018904,2]
[372927698,1752810658020,-1073.17,0.00018904,2]
[372927699,1752810658029,-928.89,0.00018904,2]
[372927700,1752810658039,-460.0,0.00018904,2]
[372927701,1752810658048,-841.3,0.00018904,2]
[372927702,1752810658058,-460.0,0.00018904,2]
[372927703,1752810658068,-1044.57,0.00018904,2]
[372927704,1752810658077,-470.17,0.00018904,2]
[372927705,1752810658086,-151.0,0.00018904,2]
[372927706,1752810658095,-151.0,0.00018904,2]
[372927707,1752810658105,-500.0,0.0001896,2]
[372927708,1752810658114,-207.4,0.00019,2]
[372927709,1752810658124,-151.0,0.00019,2]
[372927710,1752810658134,-151.0,0.00019,2]
[372927711,1752810658145,-151.0,0.00019,2]
[372927712,1752810658155,-151.0,0.00019,2]
[372927713,1752810658166,-151.0,0.00019,2]
[372927714,1752810658178,-151.0,0.00019,2]
[372927715,1752810658189,-151.0,0.00019,2]
[372927716,1752810658200,-151.0,0.00019,2]
[372927717,1752810658209,-151.0,0.00019,2]
[372927718,1752810658219,-151.0,0.00019,2]
[372927719,1752810658229,-151.0,0.00019,2]
[372927720,1752810658239,-151.0,0.00019,2]
[372927721,1752810658249,-151.0,0.00019,2]
[372927722,1752810658258,-151.0,0.00019,2]
[372927723,1752810658269,-151.0,0.00019,2]
[372927724,1752810658278,-151.0,0.00019,2]
[372927725,1752810658288,-151.0,0.00019,2]
[372927726,1752810658298,-151.0,0.00019,2]
[372927727,1752810658310,-151.0,0.00019,2]
[372927728,1752810658320,-151.0,0.00019,2]
[372927729,1752810658331,-1075.83788263,0.00019072,2]
[372927730,1752810658341,-151.0,0.00019178,2]
[372927731,1752810658351,-460.0,0.00019178,2]
[372927732,1752810658362,-592.75,0.00019178,2]
[372927733,1752810658373,-460.0,0.00019178,2]
[372927734,1752810658383,-460.0,0.00019178,2]
[372927735,1752810658393,-460.0,0.00019178,2]
[372927736,1752810658403,-460.0,0.00019178,2]
[372927737,1752810658413,-460.0,0.00019178,2]
[372927738,1752810658422,-460.0,0.00019178,2]
[372927739,1752810658432,-480.35242409,0.00019178,2]
[372927740,1752810658442,-460.0,0.00019178,2]
[372927741,1752810658451,-460.0,0.00019178,2]
[372927742,1752810658461,-460.0,0.00019178,2]
[372927743,1752810658470,-460.0,0.00019178,2]
[372927744,1752810658480,-475.19,0.00019178,2]
[372927745,1752810658490,-492.43,0.00019178,2]
[372927746,1752810658500,-460.0,0.00019178,2]
[372927747,1752810658510,-460.0,0.00019178,2]
[372927748,1752810658519,-460.0,0.00019178,2]
[372927749,1752810658529,-460.0,0.00019178,2]
[372927750,1752810658539,-2461.73,0.00019178,2]
[372927751,1752810658549,-460.0,0.00019178,2]
[372927752,1752810658559,-460.0,0.00019178,2]
[372927753,1752810658568,-460.0,0.00019178,2]
[372927754,1752810658579,-1030.36,0.00019178,2]
[372927755,1752810658590,-1488.03,0.00019178,2]
[372927756,1752810658601,-460.0,0.00019178,2]
[372927757,1752810658611,-460.0,0.00019178,2]
[372927758,1752810658621,-460.0,0.00019178,2]
[372927759,1752810658630,-1505.56,0.00019178,2]
[372927760,1752810658638,-460.0,0.00019178,2]
[372927761,1752810658648,-508.69,0.00019178,2]
[372927762,1752810658657,-570.89,0.00019178,2]
[372927763,1752810658667,-2830.02,0.00019178,2]
[372927764,1752810658677,-460.0,0.00019178,2]
[372927765,1752810658686,-2404.93,0.00019178,2]
[372927766,1752810658696,-254.44241366,0.00019178,2]
[372927767,1752810658711,-460.0,0.00019178,2]
[372927768,1752810658720,-460.0,0.00019178,2]
[372927769,1752810658730,-618.66,0.00019178,2]
[372927770,1752810658739,-460.0,0.00019178,2]
[372927771,1752810658749,-460.0,0.00019178,2]
[372927772,1752810658758,-1032.38,0.00019178,2]
[372927773,1752810658767,-574.83,0.00019178,2]
[372927774,1752810658777,-612.56,0.00019178,2]
[372927775,1752810658790,-481.63,0.00019178,2]
[372927776,1752810658810,-460.0,0.00019178,2]
[372927777,1752810658829,-460.0,0.00019178,2]
[372927778,1752810658839,-509.49,0.00019178,2]
[372927779,1752810658848,-460.0,0.00019178,2]
[372927780,1752810658858,-532.71,0.00019178,2]
[372927781,1752810658868,-463.14,0.00019178,2]
[372927782,1752810658878,-182.38118552,0.00019178,2]
[372927783,1752810658887,-1528.93,0.00019178,2]
[372927784,1752810658897,-460.0,0.00019178,2]
[372927785,1752810658906,-3075.97,0.00019178,2]
[372927786,1752810658915,-151.0,0.00019178,2]
[372927787,1752810658924,-460.0,0.00019178,2]
[372927788,1752810658934,-460.0,0.00019178,2]
[372927789,1752810658944,-1044.95,0.00019178,2]
[372927790,1752810658954,-460.0,0.00019178,2]
[372927791,1752810658962,-460.0,0.00019178,2]
[372927792,1752810658972,-460.0,0.00019178,2]
[372927793,1752810658981,-460.0,0.00019178,2]
[372927794,1752810658991,-151.0,0.00019178,2]
[372927795,1752810659001,-460.0,0.00019178,2]
[372927796,1752810659010,-460.0,0.00019178,2]
[372927797,1752810659082,-551.26,0.00019178,2]
[372927798,1752810659092,-1073.17,0.00019178,2]
[372927799,1752810659101,-928.89,0.00019178,2]
[372927800,1752810659110,-460.0,0.00019178,2]
[372927801,1752810659120,-841.3,0.00019178,2]
[372927802,1752810659130,-460.0,0.00019178,2]
[372927803,1752810659143,-1044.57,0.00019178,2]
[372927804,1752810659160,-151.0,0.00019178,2]
[372927805,1752810659170,-470.17,0.00019178,2]
[372927806,1752810659179,-164.269157,0.00019178,2]
[372927807,1752810659189,-1074.65253016,0.00019214,2]
[372927808,1752810659199,-211.002519,0.00019329,2]
[372927809,1752810659208,-151.0,0.00019329,2]
[372927810,1752810659218,-211.002519,0.00019329,2]
[372927811,1752810659228,-232.403778,0.00019329,2]
[372927812,1752810659238,-151.0,0.00019329,2]
[372927813,1752810659247,-53549.22843716,0.00019329,2]
[372927814,1752810659256,-1075.83788263,0.00019383,2]
[372927815,1752810659266,-249.23751188,0.00019452,2]
[372927816,1752810659275,-460.0,0.00019452,2]
[372927817,1752810659284,-442.34809504,0.00019452,2]
[372927818,1752810659294,-460.0,0.00019452,2]
[372927819,1752810659303,-460.0,0.00019452,2]
[372927820,1752810659313,-460.0,0.00019452,2]
[372927821,1752810659322,-460.0,0.00019452,2]
[372927822,1752810659331,-460.0,0.00019452,2]
[372927823,1752810659340,-460.0,0.00019452,2]
[372927824,1752810659350,-460.0,0.00019452,2]
[372927825,1752810659360,-475.19,0.00019452,2]
[372927826,1752810659369,-460.0,0.00019452,2]
[372927827,1752810659379,-460.0,0.00019452,2]
[372927828,1752810659388,-460.0,0.00019452,2]
[372927829,1752810659397,-460.0,0.00019452,2]
[372927830,1752810659406,-2461.73,0.00019452,2]
[372927831,1752810659416,-460.0,0.00019452,2]
[372927832,1752810659425,-460.0,0.00019452,2]
[372927833,1752810659435,-460.0,0.00019452,2]
[372927834,1752810659444,-1030.36,0.00019452,2]
[372927835,1752810659454,-1488.03,0.00019452,2]
[372927836,1752810659463,-460.0,0.00019452,2]
[372927837,1752810659472,-460.0,0.00019452,2]
[372927838,1752810659482,-460.0,0.00019452,2]
[372927839,1752810659491,-1505.56,0.00019452,2]
[372927840,1752810659501,-460.0,0.00019452,2]
[372927841,1752810659510,-508.69,0.00019452,2]
[372927842,1752810659520,-151.0,0.00019452,2]
[372927843,1752810659530,-570.89,0.00019452,2]
[372927844,1752810659539,-151.0,0.00019452,2]
[372927845,1752810659549,-2830.02,0.00019452,2]
[372927846,1752810659559,-460.0,0.00019452,2]
[372927847,1752810659570,-2404.93,0.00019452,2]
[372927848,1752810659583,-460.0,0.00019452,2]
[372927849,1752810659605,-460.0,0.00019452,2]
[372927850,1752810659624,-174.152162,0.00019452,2]
[372927851,1752810659643,-152.00976,0.00019452,2]
[372927852,1752810659664,-618.66,0.00019452,2]
[372927853,1752810659682,-174.152162,0.00019452,2]
[372927854,1752810659700,-460.0,0.00019452,2]
[372927855,1752810659720,-460.0,0.00019452,2]
[372927856,1752810659736,-1032.38,0.00019452,2]
[372927857,1752810659755,-574.83,0.00019452,2]
[372927858,1752810659775,-151.0,0.00019452,2]
[372927859,1752810659793,-423.062513,0.00019452,2]
[372927860,1752810659809,-612.56,0.00019452,2]
[372927861,1752810659826,-423.062513,0.00019452,2]
[372927862,1752810659843,-481.63,0.00019452,2]
[372927863,1752810659856,-460.0,0.00019452,2]
[372927864,1752810659872,-460.0,0.00019452,2]
[372927865,1752810659887,-509.49,0.00019452,2]
[372927866,1752810659902,-460.0,0.00019452,2]
[372927867,1752810659916,-532.71,0.00019452,2]
[372927868,1752810659930,-463.14,0.00019452,2]
[372927869,1752810659945,-1528.93,0.00019452,2]
[372927870,1752810659959,-460.0,0.00019452,2]
[372927871,1752810659974,-3075.97,0.00019452,2]
[372927872,1752810659988,-460.0,0.00019452,2]
[372927873,1752810660003,-460.0,0.00019452,2]
[372927874,1752810660018,-1044.95,0.00019452,2]
[372927875,1752810660032,-460.0,0.00019452,2]
[372927876,1752810660047,-460.0,0.00019452,2]
[372927877,1752810660062,-460.0,0.00019452,2]
[372927878,1752810660076,-460.0,0.00019452,2]
[372927879,1752810660091,-460.0,0.00019452,2]
[372927880,1752810660106,-460.0,0.00019452,2]
[372927881,1752810660121,-551.26,0.00019452,2]
[372927882,1752810660136,-1073.17,0.00019452,2]
[372927883,1752810660151,-928.89,0.00019452,2]
[372927884,1752810660167,-460.0,0.00019452,2]
[372927885,1752810660180,-841.3,0.00019452,2]
[372927886,1752810660195,-1044.57,0.00019452,2]
[372927887,1752810660210,-470.17,0.00019452,2]
[372927888,1752810660225,-4217.26936119,0.00019501,2]
[372927889,1752810660239,-587.0,0.00019629,2]
[372927890,1752810660254,-1075.83788263,0.00019693,2]
[372927891,1752810660269,-485.521,0.00019726,2]
[372927892,1752810660283,-460.0,0.00019726,2]
[372927893,1752810660293,-460.0,0.00019726,2]
[372927894,1752810660304,-460.0,0.00019726,2]
[372927895,1752810660313,-460.0,0.00019726,2]
[372927896,1752810660323,-460.0,0.00019726,2]
[372927897,1752810660332,-460.0,0.00019726,2]
[372927898,1752810660466,-271.03286344,0.00019726,2]
[372927899,1752810660483,-305.2109046,0.00019726,2]
[372927900,1752810660493,-475.19,0.00019726,2]
[372927901,1752810660503,-460.0,0.00019726,2]
[372927902,1752810660513,-460.0,0.00019726,2]
[372927903,1752810660523,-460.0,0.00019726,2]
[372927904,1752810660532,-460.0,0.00019726,2]
[372927905,1752810660541,-2461.73,0.00019726,2]
[372927906,1752810660551,-460.0,0.00019726,2]
[372927907,1752810660560,-574.27,0.00019726,2]
[372927908,1752810660570,-460.0,0.00019726,2]
[372927909,1752810660580,-1030.36,0.00019726,2]
[372927910,1752810660589,-1488.03,0.00019726,2]
[372927911,1752810660600,-460.0,0.00019726,2]
[372927912,1752810660609,-460.0,0.00019726,2]
[372927913,1752810660618,-460.0,0.00019726,2]
[372927914,1752810660630,-1505.56,0.00019726,2]
[372927915,1752810660640,-460.0,0.00019726,2]
[372927916,1752810660649,-508.69,0.00019726,2]
[372927917,1752810660659,-570.89,0.00019726,2]
[372927918,1752810660668,-2830.02,0.00019726,2]
[372927919,1752810660677,-460.0,0.00019726,2]
[372927920,1752810660687,-2404.93,0.00019726,2]
[372927921,1752810660698,-460.0,0.00019726,2]
[372927922,1752810660711,-460.0,0.00019726,2]
[372927923,1752810660721,-618.66,0.00019726,2]
[372927924,1752810660730,-460.0,0.00019726,2]
[372927925,1752810660739,-460.0,0.00019726,2]
[372927926,1752810660750,-1032.38,0.00019726,2]
[372927927,1752810660760,-574.83,0.00019726,2]
[372927928,1752810660769,-612.56,0.00019726,2]
[372927929,1752810660779,-481.63,0.00019726,2]
[372927930,1752810660789,-460.0,0.00019726,2]
[372927931,1752810660798,-460.0,0.00019726,2]
[372927932,1752810660807,-509.49,0.00019726,2]
[372927933,1752810660818,-460.0,0.00019726,2]
[372927934,1752810660827,-532.71,0.00019726,2]
[372927935,1752810660837,-463.14,0.00019726,2]
[372927936,1752810660846,-1528.93,0.00019726,2]
[372927937,1752810660856,-460.0,0.00019726,2]
[372927938,1752810660866,-3075.97,0.00019726,2]
[372927939,1752810660876,-460.0,0.00019726,2]
[372927940,1752810660886,-460.0,0.00019726,2]
[372927941,1752810660895,-1044.95,0.00019726,2]
[372927942,1752810660904,-460.0,0.00019726,2]
[372927943,1752810660913,-460.0,0.00019726,2]
[372927944,1752810660922,-460.0,0.00019726,2]
[372927945,1752810660931,-245.81,0.00019726,2]
[372927946,1752810660940,-460.0,0.00019726,2]
[372927947,1752810660950,-460.0,0.00019726,2]
[372927948,1752810660959,-551.26,0.00019726,2]
[372927949,1752810660968,-1073.17,0.00019726,2]
[372927950,1752810660977,-928.89,0.00019726,2]
[372927951,1752810660986,-460.0,0.00019726,2]
[372927952,1752810660995,-841.3,0.00019726,2]
[372927953,1752810661004,-1044.57,0.00019726,2]
[372927954,1752810661013,-470.17,0.00019726,2]
[372927955,1752810661023,-159.7855054,0.00019863,2]
[372927956,1752810661031,-158.1552161,0.00019863,2]
[372927957,1752810661040,-151.0,0.0001998,2]
[372927958,1752810661050,-460.0,0.0002,2]
[372927959,1752810661059,-460.0,0.0002,2]
[372927960,1752810661068,-460.0,0.0002,2]
[372927961,1752810661078,-531.84010269,0.0002,2]
[372927962,1752810661087,-460.0,0.0002,2]
[372927963,1752810661096,-475.19,0.0002,2]
[372927964,1752810661106,-151.0,0.0002,2]
[372927965,1752810661115,-460.0,0.0002,2]
[372927966,1752810661127,-151.0,0.0002,2]
[372927967,1752810661136,-151.0,0.0002,2]
[372927968,1752810661145,-460.0,0.0002,2]
[372927969,1752810661155,-460.0,0.0002,2]
[372927970,1752810661164,-167.284314,0.0002,2]
[372927971,1752810661173,-167.284314,0.0002,2]
[372927972,1752810661182,-460.0,0.0002,2]
[372927973,1752810661192,-2461.73,0.0002,2]
[372927974,1752810661201,-240.01,0.0002,2]
[372927975,1752810661210,-151.470043,0.0002,2]
[372927976,1752810661220,-460.0,0.0002,2]
[372927977,1752810661230,-1030.36,0.0002,2]
[372927978,1752810661239,-1488.03,0.0002,2]
[372927979,1752810661248,-460.0,0.0002,2]
[372927980,1752810661257,-460.0,0.0002,2]
[372927981,1752810661266,-460.0,0.0002,2]
[372927982,1752810661276,-1505.56,0.0002,2]
[372927983,1752810661285,-460.0,0.0002,2]
[372927984,1752810661294,-508.69,0.0002,2]
[372927985,1752810661303,-570.89,0.0002,2]
[372927986,1752810661313,-2830.02,0.0002,2]
[372927987,1752810661322,-460.0,0.0002,2]
[372927988,1752810661332,-2404.93,0.0002,2]
[372927989,1752810661341,-460.0,0.0002,2]
[372927990,1752810661351,-176.68659429,0.0002,2]
[372927991,1752810661360,-618.66,0.0002,2]
[372927992,1752810661370,-460.0,0.0002,2]
[372927993,1752810661380,-460.0,0.0002,2]
[372927994,1752810661390,-1032.38,0.0002,2]
[372927995,1752810661399,-574.83,0.0002,2]
[372927996,1752810661408,-551.98625,0.0002,2]
[372927997,1752810661418,-551.98625,0.0002,2]
[372927998,1752810661427,-612.56,0.0002,2]
[372927999,1752810661436,-481.63,0.0002,2]
[372928000,1752810661447,-460.0,0.0002,2]
[372928001,1752810661461,-509.49,0.0002,2]
[372928002,1752810661471,-460.0,0.0002,2]
[372928003,1752810661482,-460.0,0.0002,2]
[372928004,1752810661492,-532.71,0.0002,2]
[372928005,1752810661501,-463.14,0.0002,2]
[372928006,1752810661510,-1528.93,0.0002,2]
[372928007,1752810661519,-460.0,0.0002,2]
[372928008,1752810661528,-3075.97,0.0002,2]
[372928009,1752810661538,-460.0,0.0002,2]
[372928010,1752810661547,-1044.95,0.0002,2]
[372928011,1752810661557,-460.0,0.0002,2]
[372928012,1752810661566,-460.0,0.0002,2]
[372928013,1752810661576,-460.0,0.0002,2]
[372928014,1752810661585,-160.0,0.0002,3]
[372928015,1752810661594,-460.0,0.0002,2]
[372928016,1752810661604,-460.0,0.0002,2]
[372928017,1752810661613,-551.26,0.0002,2]
[372928018,1752810661623,-1073.17,0.0002,2]
[372928019,1752810661633,-460.0,0.0002,2]
[372928020,1752810661642,-928.89,0.0002,2]
[372928021,1752810661652,-841.3,0.0002,2]
[372928022,1752810661661,-1044.57,0.0002,2]
[372928023,1752810661671,-470.17,0.0002,2]
[372928024,1752810661681,-151.0,0.0002,2]
[372928025,1752810661690,-151.0,0.0002,2]
[372928026,1752810661700,-1075.83788263,0.00020003,2]
[372928027,1752810661711,-1074.65253016,0.00020173,2]
[372928028,1752810661721,-262.961874,0.00020187,2]
[372928029,1752810661730,-500.0,0.00020224,2]
[372928030,1752810661740,-460.0,0.00020273,2]
[372928031,1752810661751,-460.0,0.00020273,2]
[372928032,1752810661760,-460.0,0.00020273,2]
[372928033,1752810661769,-460.0,0.00020273,2]
[372928034,1752810661778,-475.19,0.00020273,2]
[372928035,1752810661789,-460.0,0.00020273,2]
[372928036,1752810661799,-460.0,0.00020273,2]
[372928037,1752810661808,-460.0,0.00020273,2]
[372928038,1752810661818,-2461.73,0.00020273,2]
[372928039,1752810661827,-460.0,0.00020273,2]
[372928040,1752810661837,-1030.36,0.00020273,2]
[372928041,1752810661846,-1488.03,0.00020273,2]
[372928042,1752810661856,-460.0,0.00020273,2]
[372928043,1752810661865,-460.0,0.00020273,2]
[372928044,1752810661873,-460.0,0.00020273,2]
[372928045,1752810661883,-1505.56,0.00020273,2]
[372928046,1752810661892,-460.0,0.00020273,2]
[372928047,1752810661901,-508.69,0.00020273,2]
[372928048,1752810661911,-570.89,0.00020273,2]
[372928049,1752810661920,-2830.02,0.00020273,2]
[372928050,1752810661929,-460.0,0.00020273,2]
[372928051,1752810661939,-2404.93,0.00020273,2]
[372928052,1752810661950,-460.0,0.00020273,2]
[372928053,1752810661959,-618.66,0.00020273,2]
[372928054,1752810661969,-460.0,0.00020273,2]
[372928055,1752810661978,-460.0,0.00020273,2]
[372928056,1752810661988,-1032.38,0.00020273,2]
[372928057,1752810661997,-574.83,0.00020273,2]
[372928058,1752810662007,-612.56,0.00020273,2]
[372928059,1752810662016,-481.63,0.00020273,2]
[372928060,1752810662026,-460.0,0.00020273,2]
[372928061,1752810662036,-509.49,0.00020273,2]
[372928062,1752810662045,-460.0,0.00020273,2]
[372928063,1752810662055,-460.0,0.00020273,2]
[372928064,1752810662064,-532.71,0.00020273,2]
[372928065,1752810662073,-463.14,0.00020273,2]
[372928066,1752810662082,-1528.93,0.00020273,2]
[372928067,1752810662092,-460.0,0.00020273,2]
[372928068,1752810662101,-3075.97,0.00020273,2]
[372928069,1752810662110,-460.0,0.00020273,2]
[372928070,1752810662120,-1044.95,0.00020273,2]
[372928071,1752810662131,-460.0,0.00020273,2]
[372928072,1752810662140,-460.0,0.00020273,2]
[372928073,1752810662150,-460.0,0.00020273,2]
[372928074,1752810662159,-151.0,0.00020273,2]
[372928075,1752810662168,-460.0,0.00020273,2]
[372928076,1752810662177,-460.0,0.00020273,2]
[372928077,1752810662185,-551.26,0.00020273,2]
[372928078,1752810662194,-1073.17,0.00020273,2]
[372928079,1752810662204,-460.0,0.00020273,2]
[372928080,1752810662213,-928.89,0.00020273,2]
[372928081,1752810662223,-841.3,0.00020273,2]
[372928082,1752810662232,-151.0,0.00020273,2]
[372928083,1752810662242,-1044.57,0.00020273,2]
[372928084,1752810662251,-470.17,0.00020273,2]
[372928085,1752810662260,-1075.83788263,0.00020314,3]
[372928086,1752810662269,-215.0738,0.00020369,2]
[372928087,1752810662279,-151.487078,0.00020547,2]
[372928088,1752810662288,-460.0,0.00020547,2]
[372928089,1752810662297,-460.0,0.00020547,2]
[372928090,1752810662307,-460.0,0.00020547,2]
[372928091,1752810662316,-151.0,0.00020547,2]
[372928092,1752810662325,-151.724833,0.00020547,2]
[372928093,1752810662414,-151.0,0.00020547,2]
[372928094,1752810662426,-151.0,0.00020547,2]
[372928095,1752810662435,-151.0,0.00020547,2]
[372928096,1752810662445,-475.19,0.00020547,2]
[372928097,1752810662454,-151.0,0.00020547,2]
[372928098,1752810662463,-227.825256,0.00020547,2]
[372928099,1752810662473,-460.0,0.00020547,2]
[372928100,1752810662483,-1668.810795,0.00020547,2]
[372928101,1752810662492,-460.0,0.00020547,2]
[372928102,1752810662500,-1668.810795,0.00020547,2]
[372928103,1752810662509,-460.0,0.00020547,2]
[372928104,1752810662519,-2461.73,0.00020547,2]
[372928105,1752810662528,-460.0,0.00020547,2]
[372928106,1752810662538,-1030.36,0.00020547,2]
[372928107,1752810662547,-1488.03,0.00020547,2]
[372928108,1752810662557,-460.0,0.00020547,2]
[372928109,1752810662566,-460.0,0.00020547,2]
[372928110,1752810662576,-1505.56,0.00020547,2]
[372928111,1752810662586,-460.0,0.00020547,2]
[372928112,1752810662595,-508.69,0.00020547,2]
[372928113,1752810662605,-570.89,0.00020547,2]
[372928114,1752810662615,-2830.02,0.00020547,2]
[372928115,1752810662627,-460.0,0.00020547,2]
[372928116,1752810662637,-2404.93,0.00020547,2]
[372928117,1752810662647,-460.0,0.00020547,2]
[372928118,1752810662657,-618.66,0.00020547,2]
[372928119,1752810662667,-460.0,0.00020547,2]
[372928120,1752810662677,-478.85,0.00020547,2]
[372928121,1752810662686,-1032.38,0.00020547,2]
[372928122,1752810662696,-574.83,0.00020547,2]
[372928123,1752810662708,-612.56,0.00020547,2]
[372928124,1752810662718,-481.63,0.00020547,2]
[372928125,1752810662728,-586.98,0.00020547,2]
[372928126,1752810662737,-509.49,0.00020547,2]
[372928127,1752810662747,-460.0,0.00020547,2]
[372928128,1752810662757,-460.0,0.00020547,2]
[372928129,1752810662767,-532.71,0.00020547,2]
[372928130,1752810662776,-463.14,0.00020547,2]
[372928131,1752810662787,-1528.93,0.00020547,2]
[372928132,1752810662797,-460.0,0.00020547,2]
[372928133,1752810662807,-3075.97,0.00020547,2]
[372928134,1752810662816,-460.0,0.00020547,2]
[372928135,1752810662825,-1044.95,0.00020547,2]
[372928136,1752810662835,-460.0,0.00020547,2]
[372928137,1752810662844,-460.0,0.00020547,2]
[372928138,1752810662853,-460.0,0.00020547,2]
[372928139,1752810662862,-460.0,0.00020547,2]
[372928140,1752810662875,-460.0,0.00020547,2]
[372928141,1752810662884,-551.26,0.00020547,2]
[372928142,1752810662894,-1073.17,0.00020547,2]
[372928143,1752810662903,-460.0,0.00020547,2]
[372928144,1752810662913,-928.89,0.00020547,2]
[372928145,1752810662922,-841.3,0.00020547,2]
[372928146,1752810662931,-1044.57,0.00020547,2]
[372928147,1752810662940,-470.17,0.00020547,2]
[372928148,1752810662949,-561.822424,0.0002058,8]
[372928149,1752810662958,-1075.83788263,0.00020624,3]
[372928150,1752810662968,-1998.51654043,0.00020821,2]
[372928151,1752810662977,-460.0,0.00020821,2]
[372928152,1752810662986,-460.0,0.00020821,2]
[372928153,1752810662996,-479.2269231,0.00020821,2]
[372928154,1752810663005,-151.0,0.00020821,2]
[372928155,1752810663014,-153.438271,0.00020821,2]
[372928156,1752810663023,-151.0,0.00020821,2]
[372928157,1752810663035,-475.19,0.00020821,2]
[372928158,1752810663045,-151.0,0.00020821,2]
[372928159,1752810663055,-151.0,0.00020821,2]
[372928160,1752810663065,-460.0,0.00020821,2]
[372928161,1752810663074,-460.0,0.00020821,2]
[372928162,1752810663083,-261.4164914,0.00020821,2]
[372928163,1752810663093,-2461.73,0.00020821,2]
[372928164,1752810663104,-460.0,0.00020821,2]
[372928165,1752810663114,-1030.36,0.00020821,2]
[372928166,1752810663124,-1488.03,0.00020821,2]
[372928167,1752810663134,-460.0,0.00020821,2]
[372928168,1752810663144,-1505.56,0.00020821,2]
[372928169,1752810663153,-460.0,0.00020821,2]
[372928170,1752810663162,-508.69,0.00020821,2]
[372928171,1752810663171,-570.89,0.00020821,2]